[Event "7th Iberoamerican-ch 2019"]
[Site "Linares"]
[Date "2019.08.17"]
[Round "8.6"]
[White "Salgado Lopez, Ivan"]
[Black "Salinas Herrera, Pablo"]
[Result "1-0"]
[ECO "A06"]
[WhiteElo "2596"]
[BlackElo "2506"]
[Annotator "ChessBase"]
[PlyCount "129"]
[EventDate "2019.08.10"]
[EventType "swiss"]
[EventCountry "ESP"]
[SourceTitle "playchess.com"]
[Source "ChessBase"]
[SourceQuality "1"]
[TimeControl "5400+30"]

1. Nf3 {[%emt 0:00:00]} d5 {[%emt 0:00:00]} 2. b3 {[%emt 0:00:00]} Nf6 {[%emt 0:01:26]} 3. Bb2 {[%emt 0:00:00]} e6 {[%emt 0:00:08]} 4. g3 {[%emt 0:00:36]} Bd6 {[%emt 0:04:24]} 5. Bg2 {[%emt 0:00:16]} O-O {[%emt 0:00:21]} 6. c4 {[%emt 0:01:02]} b6 {[%emt 0:00:45]} 7. cxd5 {[%emt 0:01:55]} exd5 {[%emt 0:00:06]} 8. O-O {[%emt 0:00:15]} Bb7 {[%emt 0:01:27]} 9. Nc3 {[%emt 0:00:14]} a6 {[%emt 0:00:26]} 10. e3 {[%emt 0:01:15]} Nbd7 {[%emt 0:00:26]} 11. Rc1 {[%emt 0:00:23]} Re8 {[%emt 0:05:34]} 12. d3 {[%emt 0:00:46]} Rc8 {[%emt 0:05:55]} 13. Re1 {[%emt 0:00:11]} Bf8 {[%emt 0:15:10]} 14. Re2 {[%emt 0:00:47]} b5 {[%emt 0:10:38]} 15. d4 {[%emt 0:02:38]} Bd6 {[%emt 0:04:56]} 16. Rec2 {[%emt 0:01:36]} Ne4 {[%emt 0:06:58]} 17. Bh3 {[%emt 0:01:17]} f6 {[%emt 0:05:53]} 18. Ne1 {[%emt 0:02:04]} c6 {[%emt 0:00:37]} 19. Nd3 {[%emt 0:02:03]} Rc7 {[%emt 0:00:15]} 20. Bg2 {[%emt 0:06:58]} f5 {[%emt 0:01:39]} 21. Nb1 {[%emt 0:02:20]} Qe7 {[%emt 0:00:14]} 22. Nd2 {[%emt 0:00:35]} Ndf6 {[%emt 0:05:59]} 23. Nf3 {[%emt 0:02:19]} Rec8 {[%emt 0:01:39]} 24. Nfe5 {[%emt 0:09:00]} g6 {[%emt 0:09:23]} 25. Qe1 {[%emt 0:05:18]} c5 {[%emt 0:00:08]} 26. dxc5 {[%emt 0:01:15]} Nxc5 {[%emt 0:00:04]} 27. Nxc5 {[%emt 0:03:38]} Bxe5 {[%emt 0:00:12]} 28. Bxe5 {[%emt 0:01:11]} Qxe5 {[%emt 0:00:04]} 29. Qd1 {[%emt 0:03:03]} Qe7 {[%emt 0:01:20]} 30. b4 {[%emt 0:02:48]} Ne4 {[%emt 0:00:55]} 31. Qd4 {[%emt 0:03:05]} Ba8 {[%emt 0:00:16]} 32. a3 {[%emt 0:01:16]} Nf6 {[%emt 0:03:42]} 33. h3 {[%emt 0:02:21]} Qd6 {[%emt 0:03:18]} 34. Rc3 {[%emt 0:01:51]} Qb6 {[%emt 0:02:28]} 35. Kh2 {[%emt 0:02:27]} Qd6 {[%emt 0:00:25]} 36. R1c2 {[%emt 0:01:07]} Kf7 {[%emt 0:00:40]} 37. Bf3 {[%emt 0:01:28]} Kg8 {[%emt 0:00:05]} 38. Kg2 {[%emt 0:00:28]} h5 {[%emt 0:00:12]} 39. h4 {[%emt 0:02:01]} Kf7 {[%emt 0:00:04]} 40. Kf1 {[%emt 0:01:30]} Kg8 {[%emt 0:01:26]} 41. Ke1 {[%emt 0:00:23]} Rc6 {[%emt 0:01:40]} 42. Kd1 {[%emt 0:04:44]} Kh7 {[%emt 0:02:07]} 43. Kc1 {[%emt 0:01:19]} Qe7 {[%emt 0:00:39]} 44. Kb2 {[%emt 0:01:51]} Rd8 {[%emt 0:00:20]} 45. Rd3 {[%emt 0:09:29]} Rdc8 {[%emt 0:00:06]} 46. Rcd2 {[%emt 0:02:29]} Rd8 {[%emt 0:01:16]} 47. Qf4 {[%emt 0:01:17]} Rcd6 {[%emt 0:05:14]} 48. Rd4 {[%emt 0:00:29]} Rc8 {[%emt 0:00:35]} 49. Qg5 {[%emt 0:01:58]} a5 {[%emt 0:00:56]} 50. Bxh5 {[%emt 0:00:26]} Qg7 {[%emt 0:00:15]} 51. Bf3 {[%emt 0:02:14]} axb4 {[%emt 0:00:05]} 52. axb4 {[%emt 0:00:06]} Qa7 {[%emt 0:02:36]} 53. h5 {[%emt 0:03:21]} Rxc5 {[%emt 0:00:04]} 54. bxc5 {[%emt 0:00:54]} Ra6 {[%emt 0:00:03]} 55. Qxg6+ {[%emt 0:04:03]} Kh8 {[%emt 0:00:06]} 56. Kc2 {[%emt 0:00:55]} Ne4 {[%emt 0:01:48]} 57. Qe8+ {[%emt 0:00:18]} Kh7 {[%emt 0:00:02]} 58. Bxe4 {[%emt 0:00:58]} fxe4 {[%emt 0:00:31]} 59. Kd1 {[%emt 0:01:09]} b4 {[%emt 0:00:22]} 60. Rb2 {[%emt 0:02:10]} Ra1+ {[%emt 0:00:44]} 61. Kd2 {[%emt 0:00:14]} Qxc5 {[%emt 0:00:27]} 62. Qg6+ {[%emt 0:00:43]} Kh8 {[%emt 0:00:03]} 63. Qf6+ {[%emt 0:00:09]} Kh7 {[%emt 0:00:29]} 64. Rc2 {[%emt 0:00:19]} Qa5 {[%emt 0:01:22]} 65. Qg6+ {[%emt 0:00:11]} 1-0

[Event "7th Iberoamerican-ch 2019"]
[Site "Linares"]
[Date "2019.08.17"]
[Round "8.9"]
[White "Vazquez Igarza, Renier"]
[Black "Zambrana, Oswaldo"]
[Result "1/2-1/2"]
[ECO "A05"]
[WhiteElo "2570"]
[BlackElo "2440"]
[Annotator "ChessBase"]
[PlyCount "85"]
[EventDate "2019.08.10"]
[EventType "swiss"]
[EventCountry "ESP"]
[SourceTitle "playchess.com"]
[Source "ChessBase"]
[SourceQuality "1"]
[TimeControl "5400+30"]

1. Nf3 {[%emt 0:00:00]} Nf6 {[%emt 0:07:04]} 2. c4 {[%emt 0:00:23]} g6 {[%emt 0:00:12]} 3. g3 {[%emt 0:02:45]} Bg7 {[%emt 0:00:13]} 4. Bg2 {[%emt 0:00:02]} O-O {[%emt 0:00:21]} 5. O-O {[%emt 0:00:51]} c6 {[%emt 0:00:40]} 6. b3 {[%emt 0:01:01]} d5 {[%emt 0:03:01]} 7. Bb2 {[%emt 0:00:09]} Nbd7 {[%emt 0:00:23]} 8. Qc2 {[%emt 0:03:24]} b6 {[%emt 0:01:46]} 9. Nc3 {[%emt 0:07:14]} Bb7 {[%emt 0:01:47]} 10. d4 {[%emt 0:00:25]} Re8 {[%emt 0:05:53]} 11. Rad1 {[%emt 0:01:15]} Rc8 {[%emt 0:00:31]} 12. e4 {[%emt 0:00:20]} dxe4 {[%emt 0:01:34]} 13. Ne5 {[%emt 0:01:06]} Qc7 {[%emt 0:01:49]} 14. Nxe4 {[%emt 0:00:36]} Nxe5 {[%emt 0:02:59]} 15. dxe5 {[%emt 0:00:19]} Nxe4 {[%emt 0:00:05]} 16. Qxe4 {[%emt 0:00:11]} Rcd8 {[%emt 0:00:27]} 17. Bc3 {[%emt 0:05:56]} Ba8 {[%emt 0:22:51]} 18. c5 {[%emt 0:05:11]} Rd5 {[%emt 0:00:30]} 19. cxb6 {[%emt 0:00:28]} axb6 {[%emt 0:00:51]} 20. Rxd5 {[%emt 0:20:29]} cxd5 {[%emt 0:00:07]} 21. Qe3 {[%emt 0:00:03]} e6 {[%emt 0:01:14]} 22. Rc1 {[%emt 0:00:54]} b5 {[%emt 0:01:00]} 23. Bf1 {[%emt 0:04:36]} Bf8 {[%emt 0:14:42]} 24. Bd4 {[%emt 0:08:35]} Qa5 {[%emt 0:00:40]} 25. Qd3 {[%emt 0:03:25]} Rb8 {[%emt 0:03:04]} 26. h4 {[%emt 0:02:16]} h5 {[%emt 0:01:06]} 27. Be2 {[%emt 0:01:46]} b4 {[%emt 0:04:48]} 28. g4 {[%emt 0:11:03]} hxg4 {[%emt 0:00:36]} 29. Bxg4 {[%emt 0:00:14]} Qd8 {[%emt 0:01:07]} 30. Qg3 {[%emt 0:02:43]} Rc8 {[%emt 0:01:33]} 31. Rxc8 {[%emt 0:00:34]} Qxc8 {[%emt 0:00:09]} 32. h5 {[%emt 0:00:03]} Qc2 {[%emt 0:03:49]} 33. hxg6 {[%emt 0:00:31]} Qxg6 {[%emt 0:00:41]} 34. Kg2 {[%emt 0:00:45]} Bc6 {[%emt 0:01:08]} 35. Be2 {[%emt 0:00:12]} Qxg3+ {[%emt 0:02:18]} 36. Kxg3 {[%emt 0:00:02]} Be7 {[%emt 0:00:33]} 37. f4 {[%emt 0:00:58]} Kg7 {[%emt 0:01:17]} 38. Ba6 {[%emt 0:01:18]} Bd7 {[%emt 0:01:08]} 39. f5 {[%emt 0:00:45]} f6 {[%emt 0:00:18]} 40. Bb7 {[%emt 0:01:05]} exf5 {[%emt 0:00:19]} 41. Bxd5 {[%emt 0:00:08]} fxe5 {[%emt 0:00:10]} 42. Bxe5+ {[%emt 0:00:02]} Kg6 {[%emt 0:00:14]} 43. Kf3 {[%emt 0:00:34]} 1/2-1/2

[Event "7th Iberoamerican-ch 2019"]
[Site "Linares"]
[Date "2019.08.17"]
[Round "8.10"]
[White "Gines Esteo, Pedro Antonio"]
[Black "Cruz, Cristhian"]
[Result "0-1"]
[ECO "E29"]
[WhiteElo "2417"]
[BlackElo "2559"]
[Annotator "ChessBase"]
[PlyCount "38"]
[EventDate "2019.08.10"]
[EventType "swiss"]
[EventCountry "ESP"]
[SourceTitle "playchess.com"]
[Source "ChessBase"]
[SourceQuality "1"]
[TimeControl "5400+30"]

1. d4 {[%emt 0:00:00]} e6 {[%emt 0:02:52]} 2. c4 {[%emt 0:00:36]} Nf6 {[%emt 0:00:43]} 3. Nc3 {[%emt 0:02:38]} Bb4 {[%emt 0:00:06]} 4. e3 {[%emt 0:00:15]} O-O {[%emt 0:00:30]} 5. Bd3 {[%emt 0:00:13]} c5 {[%emt 0:02:53]} 6. a3 {[%emt 0:16:29]} Bxc3+ {[%emt 0:09:06]} 7. bxc3 {[%emt 0:00:02]} Nc6 {[%emt 0:01:44]} 8. e4 {[%emt 0:12:49]} Ne8 {[%emt 0:00:32]} 9. Ne2 {[%emt 0:15:43]} b6 {[%emt 0:02:51]} 10. Be3 {[%emt 0:06:17]} Ba6 {[%emt 0:04:59]} 11. h4 {[%emt 0:07:35]} Na5 {[%emt 0:02:31]} 12. h5 {[%emt 0:00:22]} Rc8 {[%emt 0:19:22]} 13. h6 {[%emt 0:10:17]} g6 {[%emt 0:00:18]} 14. O-O {[%emt 0:06:37]} Bxc4 {[%emt 0:06:28]} 15. dxc5 {[%emt 0:02:55]} bxc5 {[%emt 0:02:18]} 16. Bxc4 {[%emt 0:00:46]} Nxc4 {[%emt 0:00:05]} 17. Bxc5 {[%emt 0:00:11]} Rxc5 {[%emt 0:02:10]} 18. Qd4 {[%emt 0:00:06]} d6 {[%emt 0:02:40]} 19. Rfd1 {[%emt 0:01:06]} Qg5 {[%emt 0:00:39]} 0-1

[Event "7th Iberoamerican-ch 2019"]
[Site "Linares"]
[Date "2019.08.17"]
[Round "8.11"]
[White "Plazuelo Pascual, Juan"]
[Black "Martinez Duany, Lelys Stanley"]
[Result "1/2-1/2"]
[ECO "C55"]
[WhiteElo "2411"]
[BlackElo "2526"]
[Annotator "ChessBase"]
[PlyCount "82"]
[EventDate "2019.08.10"]
[EventType "swiss"]
[EventCountry "ESP"]
[SourceTitle "playchess.com"]
[Source "ChessBase"]
[SourceQuality "1"]
[TimeControl "5400+30"]

1. e4 {[%emt 0:00:00]} e5 {[%emt 0:01:28]} 2. Nf3 {[%emt 0:00:00]} Nc6 {[%emt 0:00:20]} 3. d4 {[%emt 0:00:00]} exd4 {[%emt 0:00:09]} 4. Bc4 {[%emt 0:00:03]} Nf6 {[%emt 0:00:35]} 5. e5 {[%emt 0:00:20]} d5 {[%emt 0:00:06]} 6. Bb5 {[%emt 0:00:14]} Ne4 {[%emt 0:02:32]} 7. Nxd4 {[%emt 0:00:19]} Bd7 {[%emt 0:00:13]} 8. Bxc6 {[%emt 0:00:25]} bxc6 {[%emt 0:00:06]} 9. O-O {[%emt 0:00:11]} Bc5 {[%emt 0:03:30]} 10. f3 {[%emt 0:00:28]} Ng5 {[%emt 0:00:43]} 11. Be3 {[%emt 0:00:25]} Ne6 {[%emt 0:01:10]} 12. f4 {[%emt 0:20:10]} Bxd4 {[%emt 0:01:13]} 13. Bxd4 {[%emt 0:00:05]} c5 {[%emt 0:00:06]} 14. Bf2 {[%emt 0:11:12]} Bb5 {[%emt 0:03:14]} 15. Re1 {[%emt 0:01:57]} Nxf4 {[%emt 0:00:42]} 16. Bxc5 {[%emt 0:04:06]} Ne6 {[%emt 0:01:24]} 17. Bf2 {[%emt 0:13:24]} c5 {[%emt 0:07:20]} 18. Qf3 {[%emt 0:04:00]} Qd7 {[%emt 0:03:26]} 19. Nd2 {[%emt 0:06:18]} O-O {[%emt 0:01:21]} 20. Rad1 {[%emt 0:00:30]} Bc6 {[%emt 0:02:11]} 21. Qg4 {[%emt 0:04:29]} f5 {[%emt 0:03:20]} 22. exf6 {[%emt 0:06:37]} Rxf6 {[%emt 0:00:24]} 23. Bg3 {[%emt 0:00:29]} d4 {[%emt 0:01:59]} 24. Ne4 {[%emt 0:03:15]} Rg6 {[%emt 0:00:22]} 25. Qh5 {[%emt 0:00:13]} Bd5 {[%emt 0:04:12]} 26. c4 {[%emt 0:01:09]} Bxe4 {[%emt 0:01:32]} 27. Rxe4 {[%emt 0:00:03]} Rd8 {[%emt 0:01:23]} 28. Re5 {[%emt 0:03:30]} Rf8 {[%emt 0:03:15]} 29. Qe2 {[%emt 0:00:51]} Rff6 {[%emt 0:01:10]} 30. b3 {[%emt 0:06:22]} h6 {[%emt 0:00:21]} 31. Qe4 {[%emt 0:00:17]} Qf7 {[%emt 0:00:11]} 32. Re1 {[%emt 0:01:18]} Kh7 {[%emt 0:02:23]} 33. Qd3 {[%emt 0:00:54]} Kg8 {[%emt 0:02:16]} 34. Qe4 {[%emt 0:00:05]} Kh8 {[%emt 0:01:06]} 35. a3 {[%emt 0:01:40]} a5 {[%emt 0:03:15]} 36. Qa8+ {[%emt 0:01:31]} Kh7 {[%emt 0:00:08]} 37. Qxa5 {[%emt 0:00:41]} Qb7 {[%emt 0:00:23]} 38. Qb5 {[%emt 0:01:21]} Qa8 {[%emt 0:00:09]} 39. Qa4 {[%emt 0:00:35]} Qb7 {[%emt 0:02:47]} 40. Qb5 {[%emt 0:00:56]} Qa8 {[%emt 0:00:11]} 41. Qa4 {[%emt 0:00:46]} Qb7 1/2-1/2

[Event "7th Iberoamerican-ch 2019"]
[Site "Linares"]
[Date "2019.08.17"]
[Round "8.12"]
[White "Ladron De Guevara Pinto, Paolo"]
[Black "Cuenca Jimenez, Jose Fernando"]
[Result "0-1"]
[ECO "C52"]
[WhiteElo "2431"]
[BlackElo "2515"]
[Annotator "ChessBase"]
[PlyCount "80"]
[EventDate "2019.08.10"]
[EventType "swiss"]
[EventCountry "ESP"]
[SourceTitle "playchess.com"]
[Source "ChessBase"]
[SourceQuality "1"]
[TimeControl "5400+30"]

1. e4 {[%emt 0:01:20]} e5 {[%emt 0:00:00]} 2. Nf3 {[%emt 0:01:09]} Nc6 {[%emt 0:00:00]} 3. Bc4 {[%emt 0:00:04]} Bc5 {[%emt 0:00:19]} 4. b4 {[%emt 0:06:26]} Bxb4 {[%emt 0:00:26]} 5. c3 {[%emt 0:00:06]} Ba5 {[%emt 0:01:00]} 6. d4 {[%emt 0:00:13]} d6 {[%emt 0:01:18]} 7. Qb3 {[%emt 0:00:49]} Qd7 {[%emt 0:00:07]} 8. O-O {[%emt 0:04:17]} Bb6 {[%emt 0:00:48]} 9. dxe5 {[%emt 0:21:40]} Na5 {[%emt 0:02:23]} 10. Qb4 {[%emt 0:01:19]} Nxc4 {[%emt 0:01:34]} 11. Qxc4 {[%emt 0:00:07]} dxe5 {[%emt 0:01:37]} 12. Nxe5 {[%emt 0:18:46]} Qe6 {[%emt 0:02:14]} 13. Qa4+ {[%emt 0:02:01]} c6 {[%emt 0:00:50]} 14. Nf3 {[%emt 0:10:51]} Ne7 {[%emt 0:11:10]} 15. Ba3 {[%emt 0:01:03]} O-O {[%emt 0:10:56]} 16. Nbd2 {[%emt 0:01:56]} Re8 {[%emt 0:08:00]} 17. Rfe1 {[%emt 0:03:10]} Qg6 {[%emt 0:08:29]} 18. Rab1 {[%emt 0:02:04]} Bc7 {[%emt 0:07:08]} 19. Kh1 {[%emt 0:01:09]} Qh5 {[%emt 0:06:55]} 20. e5 {[%emt 0:02:40]} Nd5 {[%emt 0:07:08]} 21. Ne4 {[%emt 0:00:05]} b5 {[%emt 0:03:45]} 22. Qd4 {[%emt 0:00:13]} Bg4 {[%emt 0:05:59]} 23. Ng3 {[%emt 0:09:40]} Qg6 {[%emt 0:00:09]} 24. Nd2 {[%emt 0:03:06]} Rad8 {[%emt 0:00:39]} 25. f3 {[%emt 0:00:48]} Bc8 {[%emt 0:07:29]} 26. Bd6 {[%emt 0:00:32]} Bb6 {[%emt 0:01:01]} 27. Qh4 {[%emt 0:01:26]} Nxc3 {[%emt 0:01:11]} 28. Ra1 {[%emt 0:00:24]} Nd5 {[%emt 0:07:01]} 29. Ngf1 {[%emt 0:02:24]} f6 {[%emt 0:00:21]} 30. f4 {[%emt 0:00:34]} Qg4 {[%emt 0:00:58]} 31. Qxg4 {[%emt 0:00:44]} Bxg4 {[%emt 0:00:02]} 32. g3 {[%emt 0:00:23]} fxe5 {[%emt 0:00:35]} 33. fxe5 {[%emt 0:00:29]} c5 {[%emt 0:03:12]} 34. Kg2 {[%emt 0:00:45]} c4 {[%emt 0:00:55]} 35. a4 {[%emt 0:00:37]} c3 {[%emt 0:00:27]} 36. Nb3 {[%emt 0:00:48]} bxa4 {[%emt 0:00:25]} 37. Rxa4 {[%emt 0:02:58]} Bd7 {[%emt 0:00:01]} 38. Raa1 {[%emt 0:00:25]} Bc6 {[%emt 0:00:03]} 39. Kh3 {[%emt 0:00:03]} Re6 {[%emt 0:00:44]} 40. g4 {[%emt 0:00:16]} Nf4+ {[%emt 0:00:39]} 0-1

[Event "7th Iberoamerican-ch 2019"]
[Site "Linares"]
[Date "2019.08.17"]
[Round "8.13"]
[White "Matamoros Franco, Carlos S."]
[Black "Damaso, Rui"]
[Result "1/2-1/2"]
[ECO "A30"]
[WhiteElo "2498"]
[BlackElo "2417"]
[Annotator "ChessBase"]
[PlyCount "34"]
[EventDate "2019.08.10"]
[EventType "swiss"]
[EventCountry "ESP"]
[SourceTitle "playchess.com"]
[Source "ChessBase"]
[SourceQuality "1"]
[TimeControl "5400+30"]

1. c4 c5 {[%emt 0:02:17]} 2. Nf3 {[%emt 0:00:08]} g6 {[%emt 0:02:02]} 3. d4 {[%emt 0:04:11]} Bg7 {[%emt 0:08:50]} 4. e4 {[%emt 0:04:17]} d6 {[%emt 0:05:48]} 5. d5 {[%emt 0:00:41]} e6 {[%emt 0:00:44]} 6. Nc3 {[%emt 0:02:36]} exd5 {[%emt 0:01:03]} 7. cxd5 {[%emt 0:03:45]} a6 {[%emt 0:02:58]} 8. Bf4 {[%emt 0:19:42]} b5 {[%emt 0:08:44]} 9. h3 {[%emt 0:02:49]} Nf6 {[%emt 0:02:28]} 10. Bd3 {[%emt 0:00:11]} O-O {[%emt 0:00:09]} 11. O-O {[%emt 0:00:22]} Re8 {[%emt 0:01:18]} 12. Re1 {[%emt 0:00:22]} Bb7 {[%emt 0:01:14]} 13. a3 {[%emt 0:00:34]} Qb6 {[%emt 0:01:08]} 14. Qd2 {[%emt 0:05:06]} Nbd7 {[%emt 0:02:45]} 15. b4 {[%emt 0:00:53]} Rac8 {[%emt 0:12:57]} 16. Rac1 {[%emt 0:01:07]} Nh5 {[%emt 0:00:28]} 17. Be3 {[%emt 0:16:52]} Qd8 {[%emt 0:01:41]} 1/2-1/2

[Event "7th Iberoamerican-ch 2019"]
[Site "Linares"]
[Date "2019.08.17"]
[Round "8.14"]
[White "Aizpurua, Patrick"]
[Black "Moreno Ruiz, Javier"]
[Result "1/2-1/2"]
[ECO "E04"]
[WhiteElo "2261"]
[BlackElo "2473"]
[Annotator "ChessBase"]
[PlyCount "82"]
[EventDate "2019.08.10"]
[EventType "swiss"]
[EventCountry "ESP"]
[SourceTitle "playchess.com"]
[Source "ChessBase"]
[SourceQuality "1"]
[TimeControl "5400+30"]

1. c4 {[%emt 0:00:00]} Nf6 {[%emt 0:00:00]} 2. g3 {[%emt 0:00:00]} e6 {[%emt 0:00:10]} 3. Nf3 {[%emt 0:00:00]} d5 {[%emt 0:00:07]} 4. d4 {[%emt 0:00:06]} dxc4 {[%emt 0:00:31]} 5. Bg2 {[%emt 0:00:05]} a6 {[%emt 0:00:10]} 6. a4 {[%emt 0:00:07]} Nc6 {[%emt 0:01:33]} 7. O-O {[%emt 0:01:55]} Rb8 {[%emt 0:03:18]} 8. Bg5 {[%emt 0:06:37]} Be7 {[%emt 0:00:51]} 9. Nc3 {[%emt 0:05:39]} h6 {[%emt 0:02:39]} 10. Bxf6 {[%emt 0:00:33]} Bxf6 {[%emt 0:00:05]} 11. e3 {[%emt 0:00:47]} O-O {[%emt 0:03:18]} 12. Nd2 {[%emt 0:01:12]} Na5 {[%emt 0:06:09]} 13. Qe2 {[%emt 0:12:26]} c5 {[%emt 0:01:20]} 14. dxc5 {[%emt 0:06:24]} Bxc3 {[%emt 0:04:57]} 15. bxc3 {[%emt 0:00:06]} Qc7 {[%emt 0:00:24]} 16. Nxc4 {[%emt 0:04:01]} Qxc5 {[%emt 0:00:12]} 17. Nxa5 {[%emt 0:00:09]} Qxa5 {[%emt 0:00:07]} 18. Qc4 {[%emt 0:10:22]} Bd7 {[%emt 0:05:12]} 19. Rfd1 {[%emt 0:01:55]} Rfc8 {[%emt 0:03:36]} 20. Qb4 {[%emt 0:00:41]} Qc7 {[%emt 0:00:20]} 21. a5 {[%emt 0:20:25]} Bc6 {[%emt 0:01:00]} 22. Bxc6 {[%emt 0:00:17]} Qxc6 {[%emt 0:00:09]} 23. Rd6 {[%emt 0:00:07]} Qf3 {[%emt 0:17:06]} 24. Rad1 {[%emt 0:01:41]} Rc7 {[%emt 0:02:02]} 25. Qb1 {[%emt 0:05:17]} g6 {[%emt 0:12:01]} 26. Rd8+ {[%emt 0:01:52]} Rxd8 {[%emt 0:00:06]} 27. Rxd8+ {[%emt 0:00:03]} Kh7 {[%emt 0:00:21]} 28. Qd3 {[%emt 0:01:16]} Qf6 {[%emt 0:03:36]} 29. Rd7 {[%emt 0:01:30]} Qe5 {[%emt 0:02:29]} 30. Rxc7 {[%emt 0:02:31]} Qxc7 {[%emt 0:00:07]} 31. Qe4 {[%emt 0:00:17]} Kg7 {[%emt 0:02:48]} 32. Qb4 {[%emt 0:00:06]} h5 {[%emt 0:02:56]} 33. h4 {[%emt 0:00:06]} e5 {[%emt 0:00:57]} 34. e4 {[%emt 0:02:14]} Kf6 {[%emt 0:03:15]} 35. Kf1 {[%emt 0:00:06]} Ke6 {[%emt 0:01:21]} 36. Qb3+ {[%emt 0:01:28]} Kf6 {[%emt 0:00:10]} 37. Qb4 {[%emt 0:00:18]} Qc6 {[%emt 0:01:25]} 38. Ke2 {[%emt 0:00:58]} Ke6 {[%emt 0:00:59]} 39. f3 {[%emt 0:03:22]} Kd7 {[%emt 0:04:33]} 40. Kd2 {[%emt 0:03:05]} Qd6+ {[%emt 0:05:39]} 41. Kc2 {[%emt 0:00:07]} Qc6 {[%emt 0:01:32]} 1/2-1/2

[Event "7th Iberoamerican-ch 2019"]
[Site "Linares"]
[Date "2019.08.17"]
[Round "8.15"]
[White "Fier, Alexandr"]
[Black "Merario Alarcon, Andres"]
[Result "1-0"]
[ECO "A13"]
[WhiteElo "2558"]
[BlackElo "2392"]
[Annotator "ChessBase"]
[PlyCount "67"]
[EventDate "2019.08.10"]
[EventType "swiss"]
[EventCountry "ESP"]
[SourceTitle "playchess.com"]
[Source "ChessBase"]
[SourceQuality "1"]
[TimeControl "5400+30"]

1. c4 {[%emt 0:00:00]} e6 {[%emt 0:00:56]} 2. Nf3 {[%emt 0:00:00]} d5 {[%emt 0:00:08]} 3. e3 {[%emt 0:00:00]} Nf6 {[%emt 0:00:05]} 4. b3 {[%emt 0:00:00]} Be7 {[%emt 0:00:13]} 5. Bb2 {[%emt 0:00:00]} O-O {[%emt 0:00:09]} 6. Nc3 {[%emt 0:00:00]} c5 {[%emt 0:00:48]} 7. cxd5 {[%emt 0:00:02]} Nxd5 {[%emt 0:00:27]} 8. Qc2 {[%emt 0:00:05]} Nc6 {[%emt 0:00:37]} 9. a3 {[%emt 0:00:04]} b6 {[%emt 0:00:38]} 10. h4 {[%emt 0:00:05]} f5 {[%emt 0:00:05]} 11. Nxd5 {[%emt 0:00:04]} exd5 {[%emt 0:00:09]} 12. d4 {[%emt 0:00:04]} Be6 {[%emt 0:03:39]} 13. Ba6 {[%emt 0:00:05]} Rb8 {[%emt 0:07:35]} 14. O-O {[%emt 0:00:52]} Qd6 {[%emt 0:11:52]} 15. Rfe1 {[%emt 0:07:17]} Na5 {[%emt 0:08:14]} 16. b4 {[%emt 0:02:40]} c4 {[%emt 0:07:22]} 17. Bb5 {[%emt 0:04:38]} Nb3 {[%emt 0:03:14]} 18. Rad1 {[%emt 0:00:06]} Bd7 {[%emt 0:00:47]} 19. Bxc4 {[%emt 0:01:33]} Rbc8 {[%emt 0:02:52]} 20. Qxb3 {[%emt 0:00:06]} dxc4 {[%emt 0:00:10]} 21. Qc2 {[%emt 0:03:48]} Qd5 {[%emt 0:00:08]} 22. e4 {[%emt 0:00:49]} fxe4 {[%emt 0:00:27]} 23. Qxe4 {[%emt 0:00:04]} Qxe4 {[%emt 0:00:38]} 24. Rxe4 {[%emt 0:00:05]} Bf6 {[%emt 0:03:32]} 25. Ne5 {[%emt 0:05:13]} Bf5 {[%emt 0:07:14]} 26. Rf4 {[%emt 0:00:05]} c3 {[%emt 0:03:14]} 27. Bc1 {[%emt 0:00:54]} Be6 {[%emt 0:07:38]} 28. Re1 {[%emt 0:01:33]} Rfd8 {[%emt 0:00:58]} 29. b5 {[%emt 0:00:56]} Bd5 {[%emt 0:07:37]} 30. Re3 {[%emt 0:01:49]} Bb7 {[%emt 0:01:00]} 31. a4 {[%emt 0:03:05]} Rd5 {[%emt 0:01:12]} 32. Rxf6 {[%emt 0:00:29]} gxf6 {[%emt 0:00:07]} 33. Rg3+ {[%emt 0:00:04]} Kf8 {[%emt 0:00:36]} 34. Ba3+ {[%emt 0:00:03]} 1-0

[Event "7th Iberoamerican-ch 2019"]
[Site "Linares"]
[Date "2019.08.17"]
[Round "8.16"]
[White "Lacayo, Rene"]
[Black "Espinosa Aranda, Angel"]
[Result "0-1"]
[ECO "A41"]
[WhiteElo "2274"]
[BlackElo "2497"]
[Annotator "ChessBase"]
[PlyCount "68"]
[EventDate "2019.08.10"]
[EventType "swiss"]
[EventCountry "ESP"]
[SourceTitle "playchess.com"]
[Source "ChessBase"]
[SourceQuality "1"]
[TimeControl "5400+30"]

1. d4 {[%emt 0:01:04]} d6 {[%emt 0:00:00]} 2. Nf3 {[%emt 0:00:37]} Nf6 {[%emt 0:00:00]} 3. g3 {[%emt 0:00:32]} g6 {[%emt 0:00:40]} 4. Bg2 {[%emt 0:00:06]} Bg7 {[%emt 0:00:14]} 5. O-O {[%emt 0:00:18]} O-O {[%emt 0:00:11]} 6. b3 {[%emt 0:00:42]} a5 {[%emt 0:04:15]} 7. a3 {[%emt 0:06:07]} b5 {[%emt 0:03:49]} 8. Bb2 {[%emt 0:01:31]} Bb7 {[%emt 0:00:35]} 9. Nbd2 {[%emt 0:01:16]} Nbd7 {[%emt 0:05:55]} 10. c4 {[%emt 0:01:40]} bxc4 {[%emt 0:06:08]} 11. Nxc4 {[%emt 0:03:49]} c5 {[%emt 0:01:21]} 12. dxc5 {[%emt 0:05:09]} Nxc5 {[%emt 0:00:06]} 13. b4 {[%emt 0:00:34]} axb4 {[%emt 0:02:08]} 14. axb4 {[%emt 0:00:02]} Ncd7 {[%emt 0:00:20]} 15. Rxa8 {[%emt 0:08:24]} Qxa8 {[%emt 0:00:09]} 16. Qa1 {[%emt 0:00:52]} Qb8 17. Bc3 {[%emt 0:12:53]} Rc8 {[%emt 0:02:40]} 18. Na5 {[%emt 0:01:00]} Be4 {[%emt 0:02:57]} 19. Nh4 {[%emt 0:21:49]} Bxg2 {[%emt 0:07:48]} 20. Nxg2 {[%emt 0:00:27]} Qb5 {[%emt 0:00:12]} 21. Qb2 {[%emt 0:06:25]} Nb6 {[%emt 0:00:20]} 22. Bd4 {[%emt 0:06:46]} Na4 {[%emt 0:04:58]} 23. Qb3 {[%emt 0:02:16]} e5 {[%emt 0:00:30]} 24. Ba1 {[%emt 0:03:41]} Nd5 25. Ne3 {[%emt 0:01:19]} Ndc3 {[%emt 0:14:48]} 26. Re1 {[%emt 0:03:35]} d5 {[%emt 0:02:08]} 27. Kg2 {[%emt 0:02:29]} d4 {[%emt 0:03:13]} 28. Nec4 {[%emt 0:03:54]} Bf8 {[%emt 0:00:07]} 29. Bxc3 {[%emt 0:01:01]} Nxc3 {[%emt 0:00:07]} 30. f4 {[%emt 0:01:28]} exf4 {[%emt 0:02:15]} 31. gxf4 {[%emt 0:00:02]} Bxb4 {[%emt 0:01:34]} 32. e4 {[%emt 0:02:33]} dxe3 {[%emt 0:01:29]} 33. Rxe3 {[%emt 0:00:40]} Qd5+ {[%emt 0:00:10]} 34. Kg3 {[%emt 0:00:13]} Bxa5 {[%emt 0:00:12]} 0-1